fUST/lending_fUST_20250908
["ID","MTS","AMOUNT","RATE_DAILY","PERIOD"]
[384298862,1757325053643,-480.0,0.00015068,2]
[384298863,1757325053734,-363.34559256,0.00015068,2]
[384298864,1757325053755,-729.63,0.00015068,2]
[384298865,1757325053768,-1316.43,0.00015068,2]
[384298866,1757325053780,-1053.1,0.00015068,2]
[384298867,1757325053789,-704.89,0.00015068,2]
[384298868,1757325053799,-875.19,0.00015068,2]
[384298869,1757325053809,-480.0,0.00015068,2]
[384298870,1757325053819,-480.0,0.00015068,2]
[384298871,1757325053829,-480.0,0.00015068,2]
[384298872,1757325053839,-480.0,0.00015068,2]
[384298873,1757325053849,-480.0,0.00015068,2]
[384298874,1757325053859,-572.23054322,0.00015068,2]
[384298875,1757325053869,-3132.38,0.00015068,2]
[384298876,1757325053879,-225.74926341,0.00015068,2]
[384298877,1757325053890,-701.6,0.00015068,2]
[384298878,1757325053899,-480.0,0.00015068,2]
[384298879,1757325053909,-480.0,0.00015068,2]
[384298880,1757325053918,-480.0,0.00015068,2]
[384298881,1757325053928,-766.08,0.00015068,2]
[384298882,1757325053937,-781.29,0.00015068,2]
[384298883,1757325053947,-480.0,0.00015068,2]
[384298884,1757325053956,-1448.46,0.00015068,2]
[384298885,1757325053965,-2788.52,0.00015068,2]
[384298886,1757325053974,-480.0,0.00015068,2]
[384298887,1757325053983,-480.0,0.00015068,2]
[384298888,1757325053992,-153.10006404,0.00015068,2]
[384298889,1757325054002,-810.02,0.00015068,2]
[384298890,1757325054011,-1545.48,0.00015068,2]
[384298891,1757325054020,-480.0,0.00015068,2]
[384298892,1757325054029,-1500.0,0.00015068,2]
[384298893,1757325054038,-1500.0,0.00015068,2]
[384298894,1757325054047,-1500.0,0.00015068,2]
[384298895,1757325054057,-696.669443,0.00015068,2]
[384298896,1757325054066,-720.0,0.00015114,2]
[384298897,1757325054075,-269.52695035,0.00015147,2]
[384298898,1757325054085,-1077.0296936,0.00015147,2]
[384298899,1757325054095,-6942.3105949,0.00015253,2]
[384298900,1757325054105,-1000.0,0.00015301,2]
[384298901,1757325054114,-1000.0,0.00015301,2]
[384298902,1757325054124,-1000.0,0.00015301,2]
[384298903,1757325054133,-2000.0,0.00015316,2]
[384298904,1757325054143,-480.0,0.00015342,2]
[384298905,1757325054154,-480.0,0.00015342,2]
[384298906,1757325054163,-480.0,0.00015342,2]
[384298907,1757325054172,-480.0,0.00015342,2]
[384298908,1757325054182,-729.63,0.00015342,2]
[384298909,1757325054192,-1316.43,0.00015342,2]
[384298910,1757325054201,-1053.1,0.00015342,2]
[384298911,1757325054211,-704.89,0.00015342,2]
[384298912,1757325054220,-875.19,0.00015342,2]
[384298913,1757325054230,-480.0,0.00015342,2]
[384298914,1757325054239,-161.5561463,0.00015342,2]
[384298915,1757325054249,-480.0,0.00015342,2]
[384298916,1757325054258,-267.45,0.00015342,2]
[384298917,1757325054267,-480.0,0.00015342,2]
[384298919,1757325054277,-3132.38,0.00015342,2]
[384298920,1757325054286,-701.6,0.00015342,2]
[384298921,1757325054295,-480.0,0.00015342,2]
[384298922,1757325054305,-379.23086615,0.00015342,2]
[384298923,1757325054315,-480.0,0.00015342,2]
[384298924,1757325054324,-766.08,0.00015342,2]
[384298925,1757325054334,-781.29,0.00015342,2]
[384298926,1757325054343,-480.0,0.00015342,2]
[384298927,1757325054354,-1448.46,0.00015342,2]
[384298928,1757325054364,-2788.52,0.00015342,2]
[384298929,1757325054374,-480.0,0.00015342,2]
[384298930,1757325054383,-480.0,0.00015342,2]
[384298931,1757325054392,-810.02,0.00015342,2]
[384298932,1757325054402,-1545.48,0.00015342,2]
[384298933,1757325054412,-480.0,0.00015342,2]
[384298934,1757325054421,-190.971824,0.00015516,2]
[384298935,1757325054431,-673.19295331,0.0001556,2]
[384298936,1757325054440,-160.0,0.00015609,2]
[384298937,1757325054450,-480.0,0.00015616,2]
[384298938,1757325054459,-480.0,0.00015616,2]
[384298939,1757325054468,-480.0,0.00015616,2]
[384298940,1757325054478,-480.0,0.00015616,2]
[384298941,1757325054487,-729.63,0.00015616,2]
[384298942,1757325054497,-1316.43,0.00015616,2]
[384298943,1757325054506,-1053.1,0.00015616,2]
[384298944,1757325054516,-704.89,0.00015616,2]
[384298945,1757325054526,-875.19,0.00015616,2]
[384298946,1757325054535,-480.0,0.00015616,2]
[384298947,1757325054545,-480.0,0.00015616,2]
[384298948,1757325054555,-480.0,0.00015616,2]
[384298949,1757325054564,-3132.38,0.00015616,2]
[384298950,1757325054575,-701.6,0.00015616,2]
[384298951,1757325054584,-480.0,0.00015616,2]
[384298952,1757325054593,-480.0,0.00015616,2]
[384298953,1757325054603,-766.08,0.00015616,2]
[384298954,1757325054613,-781.29,0.00015616,2]
[384298955,1757325054622,-480.0,0.00015616,2]
[384298956,1757325054632,-1448.46,0.00015616,2]
[384298957,1757325054641,-2788.52,0.00015616,2]
[384298958,1757325054651,-480.0,0.00015616,2]
[384298959,1757325054661,-480.0,0.00015616,2]
[384298960,1757325054670,-1545.48,0.00015616,2]
[384298961,1757325054679,-810.02,0.00015616,2]
[384298962,1757325054690,-480.0,0.00015616,2]
[384298963,1757325054701,-2000.0,0.00015616,2]
[384298964,1757325054711,-2000.0,0.00015616,2]
[384298965,1757325054721,-2000.0,0.00015616,2]
[384298966,1757325054730,-1549.0388748,0.0001567,2]
[384298967,1757325054740,-17668.69201937,0.0001583,2]
[384298968,1757325054749,-1500.0,0.00015849,2]
[384298969,1757325054759,-1500.0,0.00015849,2]
[384298970,1757325054768,-1500.0,0.00015849,2]
[384298971,1757325054778,-2500.0,0.00015864,2]
[384298972,1757325054788,-480.0,0.0001589,2]
[384298973,1757325054797,-480.0,0.0001589,2]
[384298974,1757325054806,-405.03,0.0001589,2]
[384298975,1757325054816,-480.0,0.0001589,2]
[384298976,1757325054825,-729.63,0.0001589,2]
[384298977,1757325054835,-1316.43,0.0001589,2]
[384298978,1757325054844,-1053.1,0.0001589,2]
[384298979,1757325054854,-151.0,0.0001589,2]
[384298980,1757325054863,-704.89,0.0001589,2]
[384298981,1757325054873,-875.19,0.0001589,2]
[384298982,1757325054882,-480.0,0.0001589,2]
[384298983,1757325054891,-151.0,0.0001589,2]
[384298984,1757325054900,-151.0,0.0001589,2]
[384298985,1757325054910,-480.0,0.0001589,2]
[384298986,1757325054919,-482.98,0.0001589,2]
[384298987,1757325054928,-3132.38,0.0001589,2]
[384298988,1757325054938,-701.6,0.0001589,2]
[384298989,1757325054948,-480.0,0.0001589,2]
[384298990,1757325054957,-480.0,0.0001589,2]
[384298991,1757325054967,-766.08,0.0001589,2]
[384298992,1757325054976,-781.29,0.0001589,2]
[384298993,1757325054986,-480.0,0.0001589,2]
[384298994,1757325054995,-1448.46,0.0001589,2]
[384298995,1757325055005,-2788.52,0.0001589,2]
[384298996,1757325055014,-480.0,0.0001589,2]
[384298997,1757325055023,-480.0,0.0001589,2]
[384298998,1757325055033,-1545.48,0.0001589,2]
[384298999,1757325055042,-810.02,0.0001589,2]
[384299000,1757325055053,-480.0,0.0001589,2]
[384299001,1757325055062,-388.88175473,0.00015945,2]
[384299002,1757325055072,-1555.52701891,0.00015945,2]
[384299003,1757325055081,-3496.43585675,0.00015945,2]
[384299004,1757325055091,-670.91628357,0.00015945,2]
[384299005,1757325055100,-2683.66513429,0.00015945,2]
[384299006,1757325055110,-6032.20830561,0.00015945,2]
[384299007,1757325055119,-151.0,0.00015945,2]
[384299008,1757325055130,-151.0,0.00016,2]
[384299009,1757325055139,-212.17461515,0.00016,2]
[384299010,1757325055149,-260.0,0.00016157,2]
[384299011,1757325055159,-480.0,0.00016164,2]
[384299012,1757325055169,-480.0,0.00016164,2]
[384299013,1757325055178,-480.0,0.00016164,2]
[384299014,1757325055187,-729.63,0.00016164,2]
[384299015,1757325055197,-1316.43,0.00016164,2]
[384299016,1757325055206,-1053.1,0.00016164,2]
[384299017,1757325055215,-704.89,0.00016164,2]
[384299018,1757325055225,-875.19,0.00016164,2]
[384299019,1757325055236,-480.0,0.00016164,2]
[384299020,1757325055245,-480.0,0.00016164,2]
[384299022,1757325055256,-3132.38,0.00016164,2]
[384299024,1757325055265,-480.0,0.00016164,2]
[384299025,1757325055275,-480.0,0.00016164,2]
[384299027,1757325055285,-766.08,0.00016164,2]
[384299028,1757325055295,-781.29,0.00016164,2]
[384299029,1757325055304,-480.0,0.00016164,2]
[384299030,1757325055313,-1448.46,0.00016164,2]
[384299031,1757325055323,-2788.52,0.00016164,2]
[384299032,1757325055332,-480.0,0.00016164,2]
[384299033,1757325055341,-480.0,0.00016164,2]
[384299034,1757325055351,-1545.48,0.00016164,2]
[384299035,1757325055361,-810.02,0.00016164,2]
[384299036,1757325055370,-480.0,0.00016164,2]
[384299037,1757325055379,-151.0,0.00016164,2]
[384299038,1757325055389,-151.0,0.00016164,2]
[384299039,1757325055398,-151.0,0.00016164,2]
[384299040,1757325055408,-2500.0,0.00016164,2]
[384299041,1757325055417,-2500.0,0.00016164,2]
[384299042,1757325055427,-2500.0,0.00016164,2]
[384299043,1757325055437,-335.0,0.00016184,2]
[384299044,1757325055448,-168.0,0.00016206,2]
[384299045,1757325055458,-166.282,0.0001625,2]
[384299046,1757325055467,-179.533268,0.0001627,2]
[384299047,1757325055476,-151.0,0.0001627,2]
[384299048,1757325055486,-18804.1324284,0.000163,3]
[384299049,1757325055495,-10572.35515662,0.000163,3]
[384299050,1757325055505,-530.71506861,0.000163,3]
[384299051,1757325055515,-203.26219058,0.000163,3]
[384299052,1757325055525,-160.0,0.000163,3]
[384299053,1757325055534,-500.0,0.00016335,2]
[384299054,1757325055545,-500.0,0.00016335,2]
[384299055,1757325055555,-2000.0,0.00016397,2]
[384299056,1757325055564,-2000.0,0.00016397,2]
[384299057,1757325055574,-1818.61239594,0.00016397,2]
[384299058,1757325055583,-151.0,0.000164,2]
[384299059,1757325055592,-2776.43689092,0.000164,2]
[384299060,1757325055607,-223.56310908,0.000164,2]
[384299061,1757325055701,-3000.0,0.000164,2]
[384299062,1757325055712,-2167.42701485,0.00016412,2]
[384299063,1757325055722,-215.64091899,0.00016438,2]
[384299064,1757325055732,-480.0,0.00016438,2]
[384299065,1757325055743,-500.0,0.00016438,2]
[384299066,1757325055752,-500.0,0.00016438,2]
[384299067,1757325055762,-500.0,0.00016438,2]
[384299068,1757325055771,-500.0,0.00016438,2]
[384299070,1757325055780,-500.0,0.00016438,2]
[384299072,1757325055790,-391.19211627,0.00016438,2]
[384299073,1757325055799,-480.0,0.00016438,2]
[384299074,1757325055810,-729.63,0.00016438,2]
[384299075,1757325055820,-1316.43,0.00016438,2]
[384299076,1757325055829,-1053.1,0.00016438,2]
[384299077,1757325055839,-704.89,0.00016438,2]
[384299078,1757325055849,-875.19,0.00016438,2]
[384299079,1757325055858,-176.03,0.00016438,2]
[384299081,1757325055867,-480.0,0.00016438,2]
[384299082,1757325055878,-1706.90684081,0.00016438,2]
[384299083,1757325055890,-1425.47315919,0.00016438,2]
[384299084,1757325055900,-480.0,0.00016438,2]
[384299085,1757325055910,-480.0,0.00016438,2]
[384299086,1757325055919,-766.08,0.00016438,2]
[384299088,1757325055928,-781.29,0.00016438,2]
[384299089,1757325055938,-480.0,0.00016438,2]
[384299090,1757325055947,-1005.46134879,0.00016438,2]
[384299091,1757325055971,-376.68,0.00013698,2]
[384299092,1757325055982,-103.32,0.00013698,2]
[384299093,1757325055991,-442.99865121,0.00016438,2]
[384299094,1757325056001,-2788.52,0.00016438,2]
[384299095,1757325056011,-480.0,0.00016438,2]
[384299096,1757325056020,-480.0,0.00016438,2]
[384299097,1757325056030,-1545.48,0.00016438,2]
[384299098,1757325056039,-810.02,0.00016438,2]
[384299099,1757325056049,-480.0,0.00016438,2]
[384299100,1757325056058,-3079.9002014,0.00016472,2]
[384299101,1757325056069,-158.02795954,0.00016492,2]
[384299102,1757325056079,-500.0,0.00016492,2]
[384299103,1757325056089,-500.0,0.00016492,2]
[384299104,1757325056099,-450.07963184,0.00016492,2]
[384299105,1757325056109,-158.02795954,0.00016492,2]
[384299106,1757325056118,-200.03539183,0.00016492,2]
[384299107,1757325056127,-228.82307756,0.00016492,2]
[384299108,1757325056137,-158.02795962,0.00016492,2]
[384299109,1757325056147,-500.0,0.00016492,2]
[384299110,1757325056157,-500.0,0.00016492,2]
[384299111,1757325056166,-160.01612034,0.00016492,2]
[384299112,1757325056175,-2832.71994982,0.0001655,2]
[384299113,1757325056186,-327.0,0.0001655,2]
[384299114,1757325056196,-327.0,0.0001655,2]
[384299115,1757325056205,-327.0,0.0001655,2]
[384299116,1757325056215,-327.0,0.0001655,2]
[384299117,1757325056224,-51.25050756,0.0001655,2]
[384299128,1757325421427,963.95630028,0.00013141,2]
[384299129,1757325446656,963.95630028,0.00013141,2]
[384299130,1757325471147,963.95630028,0.00013141,2]
[384299131,1757325495356,336.83001872,0.00013141,2]
[384299132,1757325495380,75.34803011,0.00013141,2]
[384299134,1757325684050,504.894715,0.0001314,2]
[384299135,1757325708972,504.894715,0.0001314,2]
[384299136,1757325733522,490.21057,0.0001314,2]
[384299138,1757326149381,171.18194806,0.00013137,2]
[384299139,1757326172169,-504.894715,0.0001327,2]
[384299140,1757326172193,-435.905285,0.00013273,2]
[384299177,1757326231941,-23.15630028,0.00013273,2]
[384299179,1757326231952,-300.0,0.00013366,2]
[384299180,1757326231962,-300.0,0.00013366,2]
[384299181,1757326231971,-300.0,0.00013366,2]
[384299182,1757326231981,-194.48396939,0.00013366,2]
[384299183,1757326231994,-105.51603061,0.00013366,2]
[384299184,1757326232004,-300.0,0.00013366,2]
[384299185,1757326232013,-1200.0,0.00013366,2]
[384299186,1757326232023,-1200.0,0.00013367,2]
[384299187,1757326232032,-157.0,0.0001337,2]
[384299188,1757326232042,-157.0,0.0001337,2]
[384299189,1757326232053,-186.0,0.0001337,2]
[384299190,1757326232063,-186.0,0.0001337,2]
[384299191,1757326232073,-157.0,0.0001337,2]
[384299192,1757326232082,-157.0,0.0001337,2]
[384299193,1757326232093,-157.0,0.0001337,2]
[384299194,1757326232232,-186.0,0.0001337,2]
[384299195,1757326232244,-157.0,0.0001337,2]
[384299196,1757326232255,-180.0,0.0001337,2]
[384299197,1757326232264,-157.0,0.0001337,2]
[384299198,1757326232275,-423.0,0.0001337,2]
[384299199,1757326232285,-248.13637627,0.0001337,2]
[384299200,1757326232295,-302.0,0.0001337,2]
[384299201,1757326232304,-316.06122813,0.0001337,2]
[384299202,1757326232314,-500.0,0.0001337,2]
[384299203,1757326232323,-500.0,0.0001337,2]
[384299204,1757326232333,-411.8900569,0.0001337,2]
[384299205,1757326232343,-500.0,0.0001337,2]
[384299206,1757326232354,-417.70667863,0.0001337,2]
[384299207,1757326232366,-82.29332137,0.0001337,2]
[384299208,1757326232375,-500.0,0.0001337,2]
[384299209,1757326232386,-366.00507599,0.0001337,2]
[384299210,1757326232398,-133.99492401,0.0001337,2]
[384299211,1757326232409,-500.0,0.0001337,2]
[384299212,1757326232418,-500.0,0.0001337,2]
[384299213,1757326232428,-500.0,0.0001337,2]
[384299214,1757326232438,-500.0,0.0001337,2]
[384299215,1757326232447,-63.76449197,0.0001337,2]
[384299216,1757326232458,-436.23550803,0.0001337,2]
[384299217,1757326232469,-500.0,0.0001337,2]
[384299218,1757326232478,-500.0,0.0001337,2]
[384299219,1757326232488,-500.0,0.0001337,2]
[384299220,1757326232498,-500.0,0.0001337,2]
[384299221,1757326232507,-500.0,0.0001337,2]
[384299222,1757326232517,-500.0,0.0001337,2]
[384299223,1757326232527,-163.3815309,0.0001337,2]
[384299224,1757326232537,-395.38672218,0.0001337,2]
[384299225,1757326232547,-500.0,0.0001337,2]
[384299226,1757326232556,-500.0,0.0001337,2]
[384299227,1757326232566,-475.1752404,0.0001337,2]
[384299228,1757326232575,-500.0,0.0001337,2]
[384299229,1757326232584,-500.0,0.0001337,2]
[384299230,1757326232594,-500.0,0.0001337,2]
[384299231,1757326232605,-500.0,0.0001337,2]
[384299232,1757326232615,-500.0,0.0001337,2]
[384299233,1757326232625,-500.0,0.0001337,2]
[384299234,1757326232634,-500.0,0.0001337,2]
[384299235,1757326232644,-500.0,0.0001337,2]
[384299236,1757326232654,-500.0,0.0001337,2]
[384299237,1757326232663,-500.0,0.0001337,2]
[384299238,1757326232674,-500.0,0.0001337,2]
[384299239,1757326232684,-500.0,0.0001337,2]
[384299240,1757326232693,-500.0,0.0001337,2]
[384299241,1757326232702,-500.0,0.0001337,2]
[384299242,1757326232712,-500.0,0.0001337,2]
[384299243,1757326232721,-500.0,0.0001337,2]
[384299244,1757326232731,-500.0,0.0001337,2]
[384299245,1757326232740,-500.0,0.0001337,2]
[384299246,1757326232751,-500.0,0.0001337,2]
[384299247,1757326232761,-500.0,0.0001337,2]
[384299248,1757326232772,-500.0,0.0001337,2]
[384299249,1757326232782,-500.0,0.0001337,2]
[384299250,1757326232791,-500.0,0.0001337,2]
[384299251,1757326232801,-500.0,0.0001337,2]
[384299252,1757326232811,-203.92418591,0.0001337,2]
[384299253,1757326232823,-500.0,0.00013371,2]
[384299254,1757326232833,-139955.34782609,0.00013371,2]
[384299305,1757326237975,-230044.65217391,0.00013371,2]
[384299307,1757326237985,-500.67600698,0.00013373,2]
[384299309,1757326237994,-2254.1341199,0.00013374,2]
[384299311,1757326238003,-205.01202403,0.00013644,2]
[384299313,1757326238012,-157.0,0.00013644,2]
[384299315,1757326238021,-232.76153109,0.00013644,2]
[384299317,1757326238030,-308.0,0.00013644,2]
[384299319,1757326238039,-157.0,0.00013644,2]
[384299321,1757326238049,-157.0,0.00013644,2]
[384299323,1757326238058,-423.0,0.00013644,2]
[384299325,1757326238067,-460.0,0.00013645,2]
[384299327,1757326238076,-500.0,0.00013673,2]
[384299329,1757326238086,-500.0,0.00013673,2]
[384299331,1757326238095,-500.0,0.00013673,2]
[384299333,1757326238105,-500.0,0.00013673,2]
[384299334,1757326238114,-500.0,0.00013673,2]
[384299336,1757326238123,-500.0,0.00013673,2]
[384299338,1757326238133,-454.32360974,0.00013673,2]
[384299341,1757326238143,-500.0,0.00013673,2]
[384299343,1757326238152,-160.02831354,0.00013673,2]
[384299345,1757326238163,-500.0,0.00013673,2]
[384299347,1757326238175,-500.0,0.00013673,2]
[384299349,1757326238184,-480.0,0.00013698,2]
[384299351,1757326238194,-233.30411105,0.00013698,2]
[384299353,1757326238205,-480.0,0.00013698,2]
[384299355,1757326238214,-480.0,0.00013698,2]
[384299357,1757326238224,-500.0,0.00013698,2]
[384299359,1757326238234,-500.0,0.00013698,2]
[384299361,1757326238244,-500.0,0.00013698,2]
[384299363,1757326238254,-500.0,0.00013698,2]
[384299365,1757326238264,-500.0,0.00013698,2]
[384299367,1757326238274,-500.0,0.00013698,2]
[384299369,1757326238283,-500.0,0.00013698,2]
[384299371,1757326238293,-480.0,0.00013698,2]
[384299373,1757326238304,-500.0,0.00013698,2]
[384299375,1757326238313,-500.0,0.00013698,2]
[384299377,1757326238323,-500.0,0.00013698,2]
[384299379,1757326238332,-500.0,0.00013698,2]
[384299381,1757326238342,-500.0,0.00013698,2]
[384299383,1757326238351,-500.0,0.00013698,2]
[384299385,1757326238362,-197.06,0.00013698,2]
[384299387,1757326238371,-480.0,0.00013698,2]
[384299389,1757326238380,-483.13414118,0.00013698,2]
[384299391,1757326238391,-480.0,0.00013698,2]
[384299393,1757326238401,-482.54867448,0.00013698,2]
[384299395,1757326238410,-480.0,0.00013698,2]
[384299397,1757326238419,-480.0,0.00013698,2]
[384299399,1757326238429,-480.0,0.00013698,2]
[384299401,1757326238438,-480.0,0.00013698,2]
[384299402,1757326238447,-482.53797955,0.00013698,2]
[384299404,1757326238457,-480.0,0.00013698,2]
[384299406,1757326238467,-483.08959952,0.00013698,2]
[384299408,1757326238476,-484.12244598,0.00013698,2]
[384299410,1757326238485,-480.0,0.00013698,2]
[384299412,1757326238495,-481.72431331,0.00013698,2]
[384299414,1757326238505,-483.1106378,0.00013698,2]
[384299416,1757326238515,-485.24885422,0.00013698,2]
[384299418,1757326238525,-481.77424425,0.00013698,2]
[384299420,1757326238535,-484.27197829,0.00013698,2]
[384299422,1757326238544,-480.0,0.00013698,2]
[384299424,1757326238553,-482.54152169,0.00013698,2]
[384299426,1757326238563,-480.0,0.00013698,2]
[384299428,1757326238573,-480.0,0.00013698,2]
[384299430,1757326238582,-317.00371844,0.00013698,2]
[384299432,1757326238592,-480.0,0.00013698,2]
[384299434,1757326238602,-480.0,0.00013698,2]
[384299437,1757326238613,-480.0,0.00013698,2]
[384299439,1757326238624,-480.0,0.00013698,2]
[384299441,1757326238634,-480.0,0.00013698,2]
[384299443,1757326238643,-276.00981847,0.00013698,2]
[384299445,1757326238653,-480.0,0.00013698,2]
[384299447,1757326238663,-480.0,0.00013698,2]
[384299449,1757326238672,-480.0,0.00013698,2]
[384299451,1757326238682,-480.0,0.00013698,2]
[384299452,1757326238690,-482.67254381,0.00013698,2]
[384299454,1757326238700,-480.0,0.00013698,2]
[384299456,1757326238709,-480.0,0.00013698,2]
[384299458,1757326238721,-549.62856115,0.00013698,2]
[384299460,1757326238730,-480.0,0.00013698,2]
[384299462,1757326238739,-480.0,0.00013698,2]
[384299464,1757326238749,-484.42089267,0.00013698,2]
[384299466,1757326238759,-480.0,0.00013698,2]
[384299468,1757326238768,-480.0,0.00013698,2]
[384299470,1757326238778,-480.0,0.00013698,2]
[384299472,1757326238787,-482.18888764,0.00013698,2]
[384299474,1757326238796,-480.56681057,0.00013698,2]
[384299476,1757326238806,-480.0,0.00013698,2]
[384299478,1757326238815,-482.79201266,0.00013698,2]
[384299480,1757326238824,-480.0,0.00013698,2]
[384299482,1757326238833,-480.0,0.00013698,2]
[384299484,1757326238842,-583.70449405,0.00013698,2]
[384299486,1757326238853,-480.0,0.00013698,2]
[384299488,1757326238863,-480.0,0.00013698,2]
[384299490,1757326238871,-480.0,0.00013698,2]
[384299492,1757326238881,-480.9462822,0.00013698,2]
[384299494,1757326238891,-480.0,0.00013698,2]
[384299496,1757326238901,-480.0,0.00013698,2]
[384299498,1757326238911,-480.0,0.00013698,2]
[384299500,1757326238920,-484.89244816,0.00013698,2]
[384299501,1757326238929,-480.0,0.00013698,2]
[384299504,1757326238939,-480.0,0.00013698,2]
[384299506,1757326238949,-480.0,0.00013698,2]
[384299508,1757326238959,-480.96590175,0.00013698,2]
[384299510,1757326238968,-480.0,0.00013698,2]
[384299512,1757326238977,-483.09841201,0.00013698,2]
[384299513,1757326238986,-480.0,0.00013698,2]
[384299515,1757326238997,-482.49203632,0.00013698,2]
[384299517,1757326239007,-480.0,0.00013698,2]
[384299520,1757326239017,-480.0,0.00013698,2]
[384299522,1757326239027,-480.0,0.00013698,2]
[384299524,1757326239037,-480.0,0.00013698,2]
[384299526,1757326239046,-480.0,0.00013698,2]
[384299528,1757326239056,-480.0,0.00013698,2]
[384299530,1757326239065,-372.43277086,0.00013698,2]
[384299532,1757326239074,-480.0,0.00013698,2]
[384299534,1757326239084,-476.35181474,0.00013698,2]
[384299536,1757326239094,-480.0,0.00013698,2]
[384299538,1757326239104,-480.0,0.00013698,2]
[384299540,1757326239114,-480.0,0.00013698,2]
[384299542,1757326239123,-480.0,0.00013698,2]
[384299544,1757326239133,-480.86930627,0.00013698,2]
[384299546,1757326239143,-480.0,0.00013698,2]
[384299548,1757326239152,-480.0,0.00013698,2]
[384299550,1757326239163,-483.60409814,0.00013698,2]
[384299551,1757326239175,-480.0,0.00013698,2]
[384299554,1757326239186,-480.0,0.00013698,2]
[384299556,1757326239196,-480.0,0.00013698,2]
[384299558,1757326239207,-480.0,0.00013698,2]
[384299560,1757326239217,-480.0,0.00013698,2]
[384299562,1757326239227,-480.0,0.00013698,2]
[384299564,1757326239236,-480.0,0.00013698,2]
[384299565,1757326239246,-480.0,0.00013698,2]
[384299567,1757326239256,-482.59797707,0.00013698,2]
[384299569,1757326239265,-480.0,0.00013698,2]
[384299571,1757326239275,-480.0,0.00013698,2]
[384299573,1757326239285,-481.08845104,0.00013698,2]
[384299575,1757326239294,-593.82,0.00013698,2]
[384299577,1757326239304,-480.0,0.00013698,2]
[384299579,1757326239313,-483.77522546,0.00013698,2]
[384299581,1757326239322,-484.36458362,0.00013698,2]
[384299583,1757326239332,-483.15339399,0.00013698,2]
[384299585,1757326239341,-480.0,0.00013698,2]
[384299587,1757326239351,-474.55573627,0.00013698,2]
[384299589,1757326239361,-481.40461927,0.00013698,2]
[384299591,1757326239369,-480.0,0.00013698,2]
[384299593,1757326239378,-481.5392304,0.00013698,2]
[384299606,1757326239388,-480.0,0.00013698,2]
[384299608,1757326239507,-482.42793387,0.00013698,2]
[384299610,1757326239516,-480.0,0.00013698,2]
[384299612,1757326239526,-482.94152984,0.00013698,2]
[384299614,1757326239537,-480.0,0.00013698,2]
[384299616,1757326239547,-480.0,0.00013698,2]
[384299618,1757326239556,-480.0,0.00013698,2]
[384299620,1757326239566,-483.78559756,0.00013698,2]
[384299622,1757326239577,-480.0,0.00013698,2]
[384299624,1757326239586,-484.46088951,0.00013698,2]
[384299626,1757326239596,-481.93523303,0.00013698,2]
[384299628,1757326239606,-482.30647875,0.00013698,2]
[384299630,1757326239616,-480.0,0.00013698,2]
[384299632,1757326239625,-481.44544933,0.00013698,2]
[384299634,1757326239634,-480.0,0.00013698,2]
[384299636,1757326239644,-480.0,0.00013698,2]
[384299638,1757326239653,-480.0,0.00013698,2]
[384299640,1757326239662,-481.49000702,0.00013698,2]